[Event "EYCC Open-U10 2019"]
[Site "Bratislava"]
[Date "2019.08.09"]
[Round "8.9"]
[White "Giang, Tran Nam"]
[Black "Sommer, Justus"]
[Result "1-0"]
[ECO "C26"]
[WhiteElo "1931"]
[BlackElo "1671"]
[Annotator "NA"]
[PlyCount "79"]
[EventDate "2019.08.02"]
[EventType "swiss"]
[EventCountry "SVK"]
[SourceTitle "playchess.com"]
[Source "ChessBase"]
[SourceQuality "1"]
[TimeControl "40/5400+30:1800+30"]

1. e4 e5 2. Nc3 Nf6 3. Bc4 Bc5 4. d3 d6 5. Nge2 Be6 6. Bb3 Nbd7 7. O-O Bb6 8. h3 Nc5 9. Be3 h6 10. Qd2 g5 11. Ng3 Nxb3 12. axb3 Bxe3 13. fxe3 h5 14. Nf5 Rg8 15. d4 g4 16. h4 g3 17. dxe5 Ng4 18. exd6 Bxf5 19. Rxf5 Qxh4 20. Nd5 Qh2+ 21. Kf1 Qh1+ 22. Ke2 Qxg2+ 23. Ke1 Qxd2+ 24. Kxd2 Rd8 25. dxc7 Rc8 26. Rxh5 Kd7 27. Rg1 Nh2 28. Ke2 Rg6 29. Rh3 Rcg8 30. e5 R8g7 31. c8=Q+ Kxc8 32. Ne7+ Kd7 33. Nxg6 Rxg6 34. Rhxg3 Rc6 35. c3 Rb6 36. Rh3 Rxb3 37. Kf2 Rxb2+ 38. Kg3 Ng4 39. Kxg4 Rb6 40. Kf5 1-0

[Event "EYCC Open-U10 2019"]
[Site "Bratislava"]
[Date "2019.08.09"]
[Round "8.10"]
[White "Kononenko, Vladimir"]
[Black "Simbelov, Roman T."]
[Result "1/2-1/2"]
[ECO "D45"]
[WhiteElo "1667"]
[BlackElo "1560"]
[Annotator "NA"]
[PlyCount "152"]
[EventDate "2019.08.02"]
[EventType "swiss"]
[EventCountry "SVK"]
[SourceTitle "playchess.com"]
[Source "ChessBase"]
[SourceQuality "1"]
[TimeControl "40/5400+30:1800+30"]

1. d4 {[%emt 0:00:00]} d5 {[%emt 0:00:00]} 2. c4 {[%emt 0:00:00]} e6 {[%emt 0:00:00]} 3. Nc3 {[%emt 0:00:00]} c6 {[%emt 0:00:00]} 4. e3 {[%emt 0:01:08]} Nf6 {[%emt 0:00:10]} 5. Nf3 {[%emt 0:00:09]} Nbd7 {[%emt 0:00:15]} 6. Be2 {[%emt 0:01:04]} Bd6 {[%emt 0:00:15]} 7. O-O {[%emt 0:01:12]} O-O {[%emt 0:01:18]} 8. Qc2 {[%emt 0:02:47]} b6 {[%emt 0:00:33]} 9. b3 {[%emt 0:05:57]} Ba6 {[%emt 0:00:58]} 10. Bb2 {[%emt 0:03:58]} Rc8 {[%emt 0:00:56]} 11. cxd5 {[%emt 0:08:11]} Bxe2 {[%emt 0:00:22]} 12. Qxe2 {[%emt 0:00:08]} exd5 {[%emt 0:00:37]} 13. Qd3 {[%emt 0:00:55]} Re8 {[%emt 0:00:22]} 14. h3 {[%emt 0:01:17]} Ne4 {[%emt 0:00:15]} 15. Nd2 {[%emt 0:05:59]} f5 {[%emt 0:02:07]} 16. f3 {[%emt 0:01:48]} Ng3 {[%emt 0:01:01]} 17. Rfe1 {[%emt 0:00:46]} Nf6 {[%emt 0:02:00]} 18. Nf1 {[%emt 0:11:03]} Nfh5 {[%emt 0:01:31]} 19. Nxg3 {[%emt 0:10:07]} Bxg3 {[%emt 0:00:53]} 20. Rf1 {[%emt 0:03:18]} Qe7 {[%emt 0:02:50]} 21. Bc1 {[%emt 0:05:03]} Bd6 {[%emt 0:02:54]} 22. Ne2 {[%emt 0:05:36]} Qg5 {[%emt 0:07:36]} 23. Bd2 {[%emt 0:07:27]} Ng3 {[%emt 0:01:14]} 24. Nxg3 {[%emt 0:03:05]} Qxg3 {[%emt 0:00:27]} 25. f4 {[%emt 0:00:07]} Re4 {[%emt 0:01:28]} 26. Rf3 {[%emt 0:01:35]} Qg6 {[%emt 0:00:18]} 27. Kf2 {[%emt 0:00:26]} Qh6 {[%emt 0:00:47]} 28. Rg1 {[%emt 0:01:38]} Qh4+ {[%emt 0:01:22]} 29. Kf1 {[%emt 0:00:30]} Kf8 {[%emt 0:02:36]} 30. g4 {[%emt 0:01:59]} fxg4 {[%emt 0:00:30]} 31. Rxg4 {[%emt 0:00:13]} Qf6 {[%emt 0:00:03]} 32. Kg2 {[%emt 0:03:28]} Rce8 {[%emt 0:00:57]} 33. Be1 {[%emt 0:01:51]} Qe6 {[%emt 0:05:21]} 34. Bf2 {[%emt 0:04:22]} c5 {[%emt 0:02:37]} 35. dxc5 {[%emt 0:03:39]} Bxc5 {[%emt 0:01:21]} 36. Rg5 {[%emt 0:00:06]} Rd8 {[%emt 0:04:05]} 37. Bh4 {[%emt 0:03:59]} Be7 {[%emt 0:01:02]} 38. Re5 {[%emt 0:01:22]} Rxe5 {[%emt 0:00:15]} 39. fxe5+ {[%emt 0:00:01]} Kg8 {[%emt 0:00:07]} 40. Bxe7 {[%emt 0:00:00]} Qxe7 {[%emt 0:00:00]} 41. Qd4 {[%emt 0:06:55]} Qc5 {[%emt 0:03:15]} 42. Qg4 {[%emt 0:06:13]} Qc2+ {[%emt 0:01:12]} 43. Rf2 {[%emt 0:00:17]} Qg6 {[%emt 0:00:51]} 44. Qxg6 {[%emt 0:02:15]} hxg6 {[%emt 0:00:07]} 45. Rc2 {[%emt 0:01:42]} Re8 {[%emt 0:00:34]} 46. Rc7 {[%emt 0:01:49]} Rxe5 {[%emt 0:00:07]} 47. Kf3 {[%emt 0:00:56]} Rh5 {[%emt 0:00:25]} 48. Rxa7 {[%emt 0:01:47]} Rxh3+ {[%emt 0:00:06]} 49. Kf4 {[%emt 0:00:38]} g5+ {[%emt 0:00:42]} 50. Kxg5 {[%emt 0:01:09]} Rxe3 {[%emt 0:01:05]} 51. Rb7 {[%emt 0:00:08]} Re2 {[%emt 0:04:14]} 52. a4 {[%emt 0:00:07]} Re6 {[%emt 0:03:06]} 53. Kf5 {[%emt 0:00:59]} Rd6 {[%emt 0:01:07]} 54. Ke5 {[%emt 0:01:06]} Rd8 {[%emt 0:00:15]} 55. Rxb6 {[%emt 0:01:45]} d4 {[%emt 0:00:10]} 56. Rg6 {[%emt 0:00:05]} d3 {[%emt 0:00:10]} 57. Rg1 {[%emt 0:00:03]} Rb8 {[%emt 0:01:18]} 58. Rb1 {[%emt 0:03:40]} Rb4 {[%emt 0:00:49]} 59. Rb2 {[%emt 0:01:06]} Kf7 {[%emt 0:00:51]} 60. Kd5 {[%emt 0:00:01]} d2 {[%emt 0:00:44]} 61. Rxd2 {[%emt 0:00:02]} Rxb3 {[%emt 0:01:00]} 62. Ra2 {[%emt 0:00:00]} g5 {[%emt 0:00:22]} 63. a5 {[%emt 0:00:52]} g4 {[%emt 0:02:28]} 64. Kc4 {[%emt 0:00:01]} Rb8 {[%emt 0:01:04]} 65. Rg2 {[%emt 0:00:16]} Ra8 {[%emt 0:01:12]} 66. Kb5 {[%emt 0:00:30]} Rb8+ {[%emt 0:00:16]} 67. Kc6 {[%emt 0:00:36]} Ra8 {[%emt 0:00:10]} 68. Kb6 {[%emt 0:00:05]} Rb8+ {[%emt 0:00:09]} 69. Ka7 {[%emt 0:00:51]} Rb4 {[%emt 0:00:45]} 70. a6 {[%emt 0:00:25]} Kf6 {[%emt 0:00:44]} 71. Ka8 {[%emt 0:03:20]} Kg5 {[%emt 0:01:07]} 72. a7 {[%emt 0:00:12]} Rb3 {[%emt 0:01:30]} 73. Rc2 {[%emt 0:00:23]} g3 {[%emt 0:00:16]} 74. Rc7 {[%emt 0:00:44]} Kg4 {[%emt 0:00:31]} 75. Rg7+ Kf3 76. Rf7+ Ke4 1/2-1/2

[Event "EYCC Open-U10 2019"]
[Site "Bratislava"]
[Date "2019.08.09"]
[Round "8.11"]
[White "Ljepic, Andrej"]
[Black "Tykheev, Aldar"]
[Result "1/2-1/2"]
[ECO "C50"]
[WhiteElo "1824"]
[BlackElo "1434"]
[Annotator "NA"]
[PlyCount "75"]
[EventDate "2019.08.02"]
[EventType "swiss"]
[EventCountry "SVK"]
[SourceTitle "playchess.com"]
[Source "ChessBase"]
[SourceQuality "1"]
[TimeControl "40/5400+30:1800+30"]

1. e4 {[%emt 0:00:00]} e5 {[%emt 0:00:00]} 2. Nf3 {[%emt 0:00:00]} Nc6 {[%emt 0:00:00]} 3. Bc4 {[%emt 0:00:00]} Nf6 {[%emt 0:00:00]} 4. d3 {[%emt 0:00:20]} Bc5 {[%emt 0:00:11]} 5. O-O {[%emt 0:00:38]} d6 {[%emt 0:00:15]} 6. c3 {[%emt 0:00:44]} Bg4 {[%emt 0:00:57]} 7. Nbd2 {[%emt 0:01:23]} O-O {[%emt 0:03:31]} 8. h3 {[%emt 0:03:10]} Bh5 {[%emt 0:02:16]} 9. Re1 {[%emt 0:04:05]} a5 {[%emt 0:06:03]} 10. a4 {[%emt 0:05:26]} Bg6 {[%emt 0:09:43]} 11. Nf1 {[%emt 0:10:54]} h6 {[%emt 0:07:00]} 12. Ng3 {[%emt 0:05:58]} Nh5 {[%emt 0:06:59]} 13. Nf5 {[%emt 0:16:47]} Bxf5 {[%emt 0:10:43]} 14. exf5 {[%emt 0:00:10]} Nf6 {[%emt 0:00:18]} 15. d4 {[%emt 0:10:07]} exd4 {[%emt 0:03:05]} 16. cxd4 {[%emt 0:00:56]} Bb4 {[%emt 0:01:59]} 17. Bd2 {[%emt 0:09:03]} Qd7 {[%emt 0:07:17]} 18. g4 {[%emt 0:06:22]} Rfe8 {[%emt 0:02:43]} 19. Qc2 {[%emt 0:02:54]} Bxd2 {[%emt 0:04:08]} 20. Qxd2 {[%emt 0:00:57]} Ne4 {[%emt 0:03:25]} 21. Qf4 {[%emt 0:02:52]} Nf6 {[%emt 0:07:35]} 22. h4 {[%emt 0:05:38]} h5 {[%emt 0:09:47]} 23. g5 {[%emt 0:02:50]} Ng4 {[%emt 0:00:14]} 24. Bb5 {[%emt 0:01:55]} d5 {[%emt 0:04:32]} 25. Nd2 {[%emt 0:03:20]} Rxe1+ {[%emt 0:02:28]} 26. Rxe1 {[%emt 0:00:07]} Re8 {[%emt 0:00:07]} 27. Rxe8+ {[%emt 0:02:45]} Qxe8 {[%emt 0:00:06]} 28. Kg2 {[%emt 0:01:24]} Qe1 {[%emt 0:00:48]} 29. Nf3 {[%emt 0:01:13]} Qxf2+ {[%emt 0:00:23]} 30. Kh1 {[%emt 0:00:25]} Qxb2 {[%emt 0:03:00]} 31. Qxc7 {[%emt 0:01:14]} Qb1+ {[%emt 0:00:52]} 32. Kg2 {[%emt 0:00:18]} Qc2+ {[%emt 0:00:30]} 33. Kg3 {[%emt 0:00:50]} Qf2+ {[%emt 0:02:30]} 34. Kf4 {[%emt 0:00:15]} Qe3+ {[%emt 0:00:37]} 35. Kg3 {[%emt 0:00:10]} Qf2+ {[%emt 0:00:03]} 36. Kf4 {[%emt 0:00:11]} Qe3+ {[%emt 0:00:03]} 37. Kg3 {[%emt 0:00:26]} Qf2+ {[%emt 0:01:37]} 38. Kf4 {[%emt 0:00:10]} 1/2-1/2

[Event "EYCC Open-U10 2019"]
[Site "Bratislava"]
[Date "2019.08.09"]
[Round "8.12"]
[White "Salinas Tomas, Daniel"]
[Black "Wielgus, Wojciech"]
[Result "1/2-1/2"]
[ECO "B52"]
[WhiteElo "2001"]
[BlackElo "1655"]
[Annotator "NA"]
[PlyCount "95"]
[EventDate "2019.08.02"]
[EventType "swiss"]
[EventCountry "SVK"]
[SourceTitle "playchess.com"]
[Source "ChessBase"]
[SourceQuality "1"]
[TimeControl "40/5400+30:1800+30"]

1. e4 {[%emt 0:00:00]} c5 {[%emt 0:01:19]} 2. Nf3 {[%emt 0:00:00]} d6 {[%emt 0:02:45]} 3. Bb5+ {[%emt 0:00:00]} Bd7 {[%emt 0:02:22]} 4. Bxd7+ {[%emt 0:00:00]} Nxd7 {[%emt 0:04:06]} 5. O-O {[%emt 0:00:38]} e6 {[%emt 0:20:23]} 6. c3 {[%emt 0:01:05]} Ngf6 {[%emt 0:02:28]} 7. Re1 {[%emt 0:01:44]} Be7 {[%emt 0:05:32]} 8. d4 {[%emt 0:07:12]} O-O {[%emt 0:16:11]} 9. h3 {[%emt 0:04:34]} Rc8 {[%emt 0:08:35]} 10. a4 {[%emt 0:04:54]} Qc7 {[%emt 0:08:15]} 11. Bf4 {[%emt 0:08:29]} Rfd8 {[%emt 0:08:29]} 12. Qe2 {[%emt 0:04:04]} h6 {[%emt 0:02:43]} 13. Bg3 {[%emt 0:02:51]} cxd4 {[%emt 0:04:17]} 14. cxd4 {[%emt 0:00:30]} Qc2 {[%emt 0:03:45]} 15. Nc3 {[%emt 0:00:47]} Qxe2 {[%emt 0:00:33]} 16. Rxe2 {[%emt 0:00:01]} Nb6 {[%emt 0:02:54]} 17. a5 {[%emt 0:20:01]} Nc4 {[%emt 0:01:41]} 18. a6 bxa6 {[%emt 0:01:09]} 19. Rxa6 {[%emt 0:01:17]} Rd7 {[%emt 0:01:27]} 20. e5 {[%emt 0:02:16]} dxe5 {[%emt 0:00:18]} 21. Nxe5 {[%emt 0:02:50]} Nxe5 {[%emt 0:00:40]} 22. dxe5 {[%emt 0:00:21]} Nd5 {[%emt 0:00:34]} 23. Nxd5 {[%emt 0:02:23]} exd5 {[%emt 0:00:24]} 24. Re3 {[%emt 0:04:51]} d4 {[%emt 0:00:26]} 25. Rd3 {[%emt 0:00:00]} Rc2 {[%emt 0:00:17]} 26. Ra2 Bb4 {[%emt 0:00:50]} 27. Kf1 {[%emt 0:05:33]} Bc3 {[%emt 0:00:27]} 28. f3 {[%emt 0:00:41]} Rxb2 {[%emt 0:00:31]} 29. Rxb2 {[%emt 0:00:40]} Bxb2 {[%emt 0:00:02]} 30. Be1 {[%emt 0:00:32]} Kh7 {[%emt 0:01:00]} 31. Ke2 {[%emt 0:00:16]} Kg6 {[%emt 0:00:32]} 32. g4 {[%emt 0:00:09]} Rb7 {[%emt 0:00:30]} 33. Kd1 {[%emt 0:00:29]} Rb5 {[%emt 0:00:30]} 34. f4 {[%emt 0:00:10]} Kh7 {[%emt 0:00:31]} 35. Kc2 {[%emt 0:00:56]} Kg8 {[%emt 0:00:28]} 36. Bf2 {[%emt 0:02:28]} Rb4 {[%emt 0:00:29]} 37. Be1 {[%emt 0:00:09]} Bc3 {[%emt 0:00:33]} 38. Bxc3 {[%emt 0:01:13]} dxc3 {[%emt 0:00:06]} 39. f5 {[%emt 0:00:21]} Re4 {[%emt 0:00:45]} 40. e6 {[%emt 0:00:00]} fxe6 {[%emt 0:00:00]} 41. fxe6 {[%emt 0:00:40]} Rxe6 {[%emt 0:02:07]} 42. Rxc3 {[%emt 0:00:39]} Kh7 {[%emt 0:16:51]} 43. Ra3 {[%emt 0:00:59]} a6 {[%emt 0:01:04]} 44. Kd3 {[%emt 0:00:11]} Kg6 {[%emt 0:01:03]} 45. Ra5 {[%emt 0:00:02]} Kf6 {[%emt 0:01:16]} 46. h4 {[%emt 0:01:00]} Ke7 {[%emt 0:06:34]} 47. Kd4 {[%emt 0:00:37]} Kd7 {[%emt 0:01:59]} 48. g5 {[%emt 0:01:41]} 1/2-1/2

[Event "EYCC Open-U10 2019"]
[Site "Bratislava"]
[Date "2019.08.09"]
[Round "8.13"]
[White "Agasarov, Benik"]
[Black "Helms, Finn"]
[Result "1-0"]
[ECO "A45"]
[WhiteElo "1697"]
[BlackElo "1787"]
[Annotator "NA"]
[PlyCount "83"]
[EventDate "2019.08.02"]
[EventType "swiss"]
[EventCountry "SVK"]
[SourceTitle "playchess.com"]
[Source "ChessBase"]
[SourceQuality "1"]
[TimeControl "40/5400+30:1800+30"]

1. d4 {[%emt 0:00:00]} Nf6 {[%emt 0:00:00]} 2. Bg5 {[%emt 0:00:23]} e6 {[%emt 0:00:14]} 3. e4 {[%emt 0:00:24]} h6 {[%emt 0:01:38]} 4. Bxf6 {[%emt 0:00:06]} Qxf6 {[%emt 0:00:35]} 5. c3 {[%emt 0:00:35]} d5 {[%emt 0:02:06]} 6. e5 {[%emt 0:07:13]} Qd8 {[%emt 0:01:18]} 7. Nf3 {[%emt 0:03:15]} c5 {[%emt 0:00:54]} 8. a3 {[%emt 0:02:23]} c4 {[%emt 0:03:56]} 9. Nbd2 {[%emt 0:00:48]} Nc6 {[%emt 0:02:39]} 10. g3 {[%emt 0:02:20]} Be7 {[%emt 0:06:27]} 11. Bg2 {[%emt 0:01:06]} O-O {[%emt 0:01:07]} 12. O-O {[%emt 0:00:08]} f6 {[%emt 0:04:02]} 13. exf6 {[%emt 0:00:13]} Bxf6 {[%emt 0:01:47]} 14. Qe2 {[%emt 0:00:17]} Qc7 {[%emt 0:04:00]} 15. Rae1 {[%emt 0:01:50]} Bd7 {[%emt 0:01:45]} 16. Ne5 {[%emt 0:00:56]} Nxe5 {[%emt 0:01:20]} 17. dxe5 {[%emt 0:00:06]} Be7 {[%emt 0:00:28]} 18. f4 {[%emt 0:00:15]} Qb6+ {[%emt 0:00:55]} 19. Kh1 {[%emt 0:02:05]} Qxb2 {[%emt 0:02:30]} 20. Rb1 {[%emt 0:01:40]} Qxa3 {[%emt 0:01:41]} 21. Rxb7 {[%emt 0:03:10]} Bc6 {[%emt 0:04:17]} 22. Rc7 {[%emt 0:00:19]} Rfc8 {[%emt 0:00:37]} 23. Rxc8+ {[%emt 0:00:28]} Rxc8 {[%emt 0:00:08]} 24. Qg4 {[%emt 0:00:09]} Bd7 {[%emt 0:02:32]} 25. Bxd5 {[%emt 0:03:13]} exd5 {[%emt 0:00:37]} 26. Qxd7 {[%emt 0:00:18]} Rd8 {[%emt 0:00:49]} 27. Qe6+ {[%emt 0:00:04]} Kh8 {[%emt 0:00:57]} 28. f5 {[%emt 0:02:40]} Bg5 {[%emt 0:11:32]} 29. Nf3 {[%emt 0:04:18]} Qf8 {[%emt 0:09:14]} 30. Nxg5 {[%emt 0:00:25]} hxg5 {[%emt 0:00:11]} 31. f6 {[%emt 0:00:06]} Kh7 {[%emt 0:05:56]} 32. Qh3+ {[%emt 0:01:41]} Kg6 {[%emt 0:01:02]} 33. g4 {[%emt 0:00:05]} gxf6 {[%emt 0:02:38]} 34. Rxf6+ {[%emt 0:00:14]} Qxf6 {[%emt 0:00:03]} 35. Qh5+ {[%emt 0:00:21]} Kg7 {[%emt 0:00:05]} 36. exf6+ {[%emt 0:00:06]} Kxf6 {[%emt 0:00:06]} 37. Qh6+ {[%emt 0:00:02]} Ke7 {[%emt 0:00:19]} 38. Qxg5+ {[%emt 0:00:07]} Ke8 {[%emt 0:00:11]} 39. Qe5+ {[%emt 0:00:04]} Kf8 {[%emt 0:00:09]} 40. g5 {[%emt 0:00:00]} d4 {[%emt 0:00:00]} 41. Qf6+ {[%emt 0:00:23]} Ke8 {[%emt 0:00:18]} 42. g6 {[%emt 0:00:04]} 1-0

[Event "EYCC Open-U10 2019"]
[Site "Bratislava"]
[Date "2019.08.09"]
[Round "8.14"]
[White "Zienkiewicz, Jan"]
[Black "Dyachuk, Artem"]
[Result "1-0"]
[ECO "B46"]
[WhiteElo "1804"]
[BlackElo "1538"]
[Annotator "NA"]
[PlyCount "93"]
[EventDate "2019.08.02"]
[EventType "swiss"]
[EventCountry "SVK"]
[SourceTitle "playchess.com"]
[Source "ChessBase"]
[SourceQuality "1"]
[TimeControl "40/5400+30:1800+30"]

1. e4 c5 2. Nf3 e6 3. d4 cxd4 4. Nxd4 Nc6 5. Nc3 a6 6. Nxc6 bxc6 7. Bd3 d5 8. O-O Nf6 9. Re1 Be7 10. e5 Nd7 11. Qg4 g6 12. Bh6 Bf8 13. Bxf8 Kxf8 14. Na4 Rb8 15. b3 c5 16. c4 d4 17. f4 Qa5 18. Qf3 Bb7 19. Be4 Bxe4 20. Rxe4 Nb6 21. Nxb6 Rxb6 22. g4 h5 23. h3 hxg4 24. hxg4 Qa3 25. Re2 Kg7 26. Rf1 Qb4 27. Qg3 Rbb8 28. f5 Qb7 29. Rg2 Qe4 30. Re1 Qc6 31. Qf4 Rh3 32. f6+ Kf8 33. Rh2 Rxh2 34. Qxh2 Ke8 35. Qh8+ Kd7 36. Qxb8 Qf3 37. Qd6+ Kc8 38. Qxa6+ Kb8 39. Qb5+ Ka8 40. Qa6+ Kb8 41. Qd6+ Kb7 42. Qd7+ Kb8 43. Qe8+ Kb7 44. Qb5+ Ka8 45. Qa5+ Kb7 46. Qd2 Qg3+ 47. Qg2+ 1-0

[Event "EYCC Open-U10 2019"]
[Site "Bratislava"]
[Date "2019.08.09"]
[Round "8.15"]
[White "Englisch, Tobias"]
[Black "Sapocinic, Semion"]
[Result "0-1"]
[ECO "B01"]
[WhiteElo "1643"]
[BlackElo "1781"]
[Annotator "NA"]
[PlyCount "88"]
[EventDate "2019.08.02"]
[EventType "swiss"]
[EventCountry "SVK"]
[SourceTitle "playchess.com"]
[Source "ChessBase"]
[SourceQuality "1"]
[TimeControl "40/5400+30:1800+30"]

1. e4 d5 2. exd5 Qxd5 3. Nc3 Qd8 4. Bc4 Nf6 5. d3 a6 6. h3 b5 7. Bb3 Bb7 8. Nf3 e6 9. O-O c5 10. Bf4 Nc6 11. a4 b4 12. Ne4 Nxe4 13. dxe4 Qxd1 14. Raxd1 Na5 15. Nd2 Rc8 16. Rfe1 c4 17. Ba2 Be7 18. Nf3 Bc6 19. Nd4 Bxa4 20. b3 cxb3 21. Bxb3 Nxb3 22. cxb3 Bd7 23. Ra1 Bc5 24. Be3 O-O 25. Rxa6 Ra8 26. Rea1 Rxa6 27. Rxa6 Rc8 28. Ra2 Bd6 29. Rc2 Ra8 30. g3 f6 31. Rc4 e5 32. Nf5 Bxf5 33. exf5 Ra3 34. Rc8+ Kf7 35. Bc5 Bxc5 36. Rxc5 h6 37. Rb5 Rxb3 38. Kf1 Rb2 39. Ke1 h5 40. h4 b3 41. Rb8 Rb1+ 42. Kd2 b2 43. Kc3 Rc1+ 44. Kxb2 Rf1 0-1

[Event "EYCC Open-U10 2019"]
[Site "Bratislava"]
[Date "2019.08.09"]
[Round "8.16"]
[White "Efimov, Leonid"]
[Black "Villa Tornero, Alex"]
[Result "0-1"]
[ECO "A05"]
[WhiteElo "1773"]
[BlackElo "1641"]
[Annotator "NA"]
[PlyCount "106"]
[EventDate "2019.08.02"]
[EventType "swiss"]
[EventCountry "SVK"]
[SourceTitle "playchess.com"]
[Source "ChessBase"]
[SourceQuality "1"]
[TimeControl "40/5400+30:1800+30"]

1. Nf3 {[%emt 0:00:00]} Nf6 {[%emt 0:01:17]} 2. g3 {[%emt 0:00:00]} b5 {[%emt 0:01:54]} 3. Bg2 {[%emt 0:01:58]} Bb7 {[%emt 0:01:21]} 4. d4 {[%emt 0:01:30]} e6 {[%emt 0:01:47]} 5. O-O {[%emt 0:02:14]} c5 {[%emt 0:03:28]} 6. Bf4 {[%emt 0:08:22]} Qb6 {[%emt 0:03:00]} 7. Nc3 {[%emt 0:20:47]} d6 {[%emt 0:14:33]} 8. dxc5 {[%emt 0:01:53]} dxc5 {[%emt 0:03:41]} 9. a4 {[%emt 0:04:18]} a6 {[%emt 0:02:20]} 10. a5 {[%emt 0:11:35]} Qa7 {[%emt 0:02:01]} 11. Bd6 {[%emt 0:08:53]} Nc6 {[%emt 0:09:15]} 12. Bxf8 {[%emt 0:00:27]} Rxf8 {[%emt 0:00:18]} 13. Qd2 {[%emt 0:10:39]} Ke7 {[%emt 0:02:21]} 14. Qg5 {[%emt 0:03:18]} h6 {[%emt 0:01:03]} 15. Qh4 {[%emt 0:02:42]} Nb4 {[%emt 0:01:15]} 16. Rac1 {[%emt 0:04:34]} Rad8 {[%emt 0:02:08]} 17. e4 {[%emt 0:01:00]} Qa8 {[%emt 0:08:26]} 18. Rfe1 {[%emt 0:05:19]} Rh8 {[%emt 0:05:23]} 19. Qf4 {[%emt 0:02:24]} Qc8 {[%emt 0:01:13]} 20. Nd2 {[%emt 0:03:14]} Rd7 {[%emt 0:04:46]} 21. e5 {[%emt 0:00:53]} Nfd5 {[%emt 0:01:22]} 22. Nxd5+ {[%emt 0:00:11]} Bxd5 {[%emt 0:01:04]} 23. Bxd5 {[%emt 0:00:19]} Rxd5 {[%emt 0:00:59]} 24. Ne4 {[%emt 0:00:04]} Rd4 {[%emt 0:01:18]} 25. Nd6 {[%emt 0:02:18]} Qf8 {[%emt 0:00:12]} 26. Qf3 {[%emt 0:00:30]} Rd5 {[%emt 0:00:57]} 27. Red1 {[%emt 0:01:38]} Rxe5 {[%emt 0:01:42]} 28. Qb7+ {[%emt 0:00:56]} Kf6 {[%emt 0:00:05]} 29. f4 {[%emt 0:00:25]} Rd5 {[%emt 0:01:58]} 30. Ne4+ {[%emt 0:00:19]} Kg6 {[%emt 0:01:45]} 31. c3 {[%emt 0:00:14]} Nd3 {[%emt 0:07:04]} 32. c4 {[%emt 0:01:41]} bxc4 {[%emt 0:02:00]} 33. Rxc4 {[%emt 0:01:07]} Nxf4 {[%emt 0:03:18]} 34. Rxd5 {[%emt 0:00:16]} Nxd5 {[%emt 0:00:18]} 35. Nxc5 {[%emt 0:00:16]} Qd6 {[%emt 0:04:18]} 36. Qxa6 {[%emt 0:00:45]} Qe5 {[%emt 0:00:54]} 37. Re4 {[%emt 0:00:21]} Qxb2 {[%emt 0:00:48]} 38. Qd3 {[%emt 0:00:27]} Kf6 {[%emt 0:01:54]} 39. Qf1+ {[%emt 0:00:55]} Ke7 {[%emt 0:00:09]} 40. a6 {[%emt 0:00:00]} Qb6 {[%emt 0:00:00]} 41. Qc4 {[%emt 0:02:28]} Rc8 {[%emt 0:03:29]} 42. Qxd5 {[%emt 0:01:59]} Rxc5 {[%emt 0:00:17]} 43. Qd4 {[%emt 0:00:22]} Rc1+ {[%emt 0:00:14]} 44. Kf2 {[%emt 0:00:10]} Qxd4+ {[%emt 0:00:15]} 45. Rxd4 {[%emt 0:00:09]} Ra1 {[%emt 0:00:15]} 46. Rb4 {[%emt 0:01:02]} Rxa6 {[%emt 0:00:09]} 47. Rb7+ {[%emt 0:00:01]} Kf6 {[%emt 0:00:10]} 48. Kf3 {[%emt 0:00:06]} h5 {[%emt 0:00:20]} 49. Kf4 {[%emt 0:00:35]} g5+ {[%emt 0:00:50]} 50. Kf3 {[%emt 0:00:05]} Ra4 {[%emt 0:00:43]} 51. Ke3 {[%emt 0:00:20]} Ra2 {[%emt 0:00:28]} 52. h4 {[%emt 0:00:20]} gxh4 {[%emt 0:00:31]} 53. gxh4 {[%emt 0:00:04]} Ra4 {[%emt 0:00:12] Kd4 Ke5+} 0-1

[Event "EYCC Open-U10 2019"]
[Site "Bratislava"]
[Date "2019.08.09"]
[Round "8.17"]
[White "Shearsby, Jude"]
[Black "kiladze, Luka"]
[Result "1/2-1/2"]
[ECO "D00"]
[WhiteElo "1486"]
[BlackElo "1683"]
[Annotator "NA"]
[PlyCount "91"]
[EventDate "2019.08.02"]
[EventType "swiss"]
[EventCountry "SVK"]
[SourceTitle "playchess.com"]
[Source "ChessBase"]
[SourceQuality "1"]
[TimeControl "40/5400+30:1800+30"]

1. d4 {[%emt 0:00:00]} d5 {[%emt 0:00:00]} 2. Bf4 {[%emt 0:00:00]} Nf6 {[%emt 0:00:44]} 3. e3 {[%emt 0:00:00]} c5 {[%emt 0:01:02]} 4. c3 {[%emt 0:00:02]} Nc6 {[%emt 0:00:50]} 5. Nd2 {[%emt 0:02:01]} Bf5 {[%emt 0:01:20]} 6. Qb3 {[%emt 0:00:22]} Qd7 {[%emt 0:03:00]} 7. Ngf3 {[%emt 0:00:22]} c4 {[%emt 0:02:35]} 8. Qd1 {[%emt 0:00:28]} e6 {[%emt 0:01:11]} 9. Ne5 {[%emt 0:00:25]} Nxe5 {[%emt 0:00:46]} 10. dxe5 {[%emt 0:01:08]} Ne4 {[%emt 0:00:48]} 11. Nxe4 {[%emt 0:01:05]} Bxe4 {[%emt 0:01:43]} 12. f3 {[%emt 0:02:05]} Bg6 {[%emt 0:02:58]} 13. b3 {[%emt 0:03:22]} cxb3 {[%emt 0:06:06]} 14. axb3 {[%emt 0:03:17]} Be7 {[%emt 0:02:53]} 15. Be2 {[%emt 0:00:40]} O-O {[%emt 0:00:36]} 16. O-O {[%emt 0:00:25]} Rfd8 {[%emt 0:02:29]} 17. Qd4 {[%emt 0:03:00]} a6 {[%emt 0:07:04]} 18. Rfd1 {[%emt 0:06:36]} Rac8 {[%emt 0:04:59]} 19. b4 {[%emt 0:02:13]} Qc6 {[%emt 0:06:18]} 20. Rac1 {[%emt 0:01:06]} Rd7 {[%emt 0:10:07]} 21. Bg3 b5 {[%emt 0:08:09]} 22. Be1 {[%emt 0:06:44]} Rdc7 {[%emt 0:00:49]} 23. Ra1 {[%emt 0:01:38]} Qb7 {[%emt 0:05:24]} 24. Ra2 {[%emt 0:01:18]} Rc6 {[%emt 0:00:38]} 25. Rda1 {[%emt 0:00:22]} Bd8 {[%emt 0:02:30]} 26. Qd1 {[%emt 0:04:37]} Bb6 {[%emt 0:04:29]} 27. Bd2 {[%emt 0:00:19]} Bc7 {[%emt 0:01:41]} 28. f4 {[%emt 0:00:42]} Be4 {[%emt 0:00:26]} 29. Bf3 {[%emt 0:00:10]} Bd3 {[%emt 0:00:31]} 30. Be2 {[%emt 0:00:21]} Bc4 {[%emt 0:01:43]} 31. Bxc4 {[%emt 0:00:16]} dxc4 {[%emt 0:01:33]} 32. Qf3 {[%emt 0:03:14]} Rd8 {[%emt 0:02:50]} 33. Kf2 {[%emt 0:08:49]} Bb6 {[%emt 0:03:15]} 34. Kg1 {[%emt 0:03:34]} Qc8 {[%emt 0:01:05]} 35. Kh1 {[%emt 0:15:10]} Ba7 {[%emt 0:01:08]} 36. h3 {[%emt 0:09:14]} h6 {[%emt 0:00:21]} 37. Kh2 {[%emt 0:00:25]} Rd3 {[%emt 0:00:24]} 38. Rd1 {[%emt 0:02:26]} Rb6 {[%emt 0:03:25]} 39. Be1 {[%emt 0:04:48]} Qd7 {[%emt 0:04:45]} 40. Rad2 {[%emt 0:00:00]} Rb8 {[%emt 0:00:00]} 41. Rxd3 {[%emt 0:03:30]} cxd3 {[%emt 0:02:00]} 42. Qe4 {[%emt 0:02:55]} Rd8 {[%emt 0:00:19]} 43. Bh4 {[%emt 0:00:07]} Qd5 {[%emt 0:01:16]} 44. Qxd5 {[%emt 0:07:08]} Rxd5 {[%emt 0:00:41]} 45. e4 {[%emt 0:00:42]} Rd7 {[%emt 0:00:31]} 46. Be1 {[%emt 0:05:23]} 1/2-1/2